[Event "Championnat d'Europe Rapide"]
[Date "2024.12.08"]
[White "Stanojoski, Zvonko"]
[Black "Kuzubov, Yuriy"]
[WhiteElo "2401"]
[BlackElo "2595"]
[Round "8.20"]
[Result "1/2-1/2"]
[TimeControl "900+10"]

1. e4 {[%emt 00:00:03] [%clk 00:15:17]} e6 {[%emt 00:00:04] [%clk 00:15:16]} 2.
d4 {[%emt 00:00:04] [%clk 00:15:23]} d5 {[%emt 00:00:01] [%clk 00:15:25]} 3.
exd5 {[%emt 00:00:03] [%clk 00:15:31]} exd5 {[%emt 00:00:01] [%clk 00:15:33]} 4.
Nf3 {[%emt 00:00:03] [%clk 00:15:38]} Bd6 {[%emt 00:00:42] [%clk 00:15:00]} 5.
Bd3 {[%emt 00:00:03] [%clk 00:15:46]} Ne7 {[%emt 00:00:07] [%clk 00:15:03]} 6.
O-O {[%emt 00:00:03] [%clk 00:15:53]} Bg4 {[%emt 00:00:23] [%clk 00:14:50]} 7.
Re1 {[%emt 00:00:05] [%clk 00:15:58]} Nd7 {[%emt 00:00:10] [%clk 00:14:50]} 8.
Nbd2 {[%emt 00:00:35] [%clk 00:15:33]} h6 {[%emt 00:00:51] [%clk 00:14:09]} 9.
Nf1 {[%emt 00:00:32] [%clk 00:15:10]} O-O {[%emt 00:00:10] [%clk 00:14:09]} 10.
Ng3 {[%emt 00:01:06] [%clk 00:14:15]} Bxg3 {[%emt 00:03:13] [%clk 00:11:06]} 11.
hxg3 {[%emt 00:00:03] [%clk 00:14:21]} Ng6 {[%emt 00:00:16] [%clk 00:11:00]} 12.
c3 {[%emt 00:00:23] [%clk 00:14:08]} Qf6 {[%emt 00:00:09] [%clk 00:11:02]} 13.
Re3 {[%emt 00:02:39] [%clk 00:11:39]} Rfe8 {[%emt 00:00:37] [%clk 00:10:36]} 14.
Qe2 {[%emt 00:00:16] [%clk 00:11:30]} Rxe3 {[%emt 00:00:44] [%clk 00:10:03]} 15.
Qxe3 {[%emt 00:00:02] [%clk 00:11:39]} Bf5 {[%emt 00:00:44] [%clk 00:09:29]} 16.
Bd2 {[%emt 00:00:47] [%clk 00:11:01]} Bxd3 {[%emt 00:00:35] [%clk 00:09:05]} 17.
Qxd3 {[%emt 00:00:02] [%clk 00:11:10]} Qb6 {[%emt 00:00:18] [%clk 00:08:57]} 18.
b3 {[%emt 00:00:14] [%clk 00:11:07]} Nf6 {[%emt 00:00:24] [%clk 00:08:42]} 19.
c4 {[%emt 00:01:08] [%clk 00:10:09]} c6 {[%emt 00:04:03] [%clk 00:04:49]} 20. c5
{[%emt 00:00:10] [%clk 00:10:10]} Qc7 {[%emt 00:00:04] [%clk 00:04:55]} 21. b4
{[%emt 00:00:03] [%clk 00:10:16]} Ne4 {[%emt 00:00:26] [%clk 00:04:39]} 22. a4
{[%emt 00:00:07] [%clk 00:10:20]} Re8 {[%emt 00:00:05] [%clk 00:04:43]} 23. b5
{[%emt 00:00:17] [%clk 00:10:13]} Nf8 {[%emt 00:00:58] [%clk 00:03:55]} 24. bxc6
{[%emt 00:00:37] [%clk 00:09:46]} bxc6 {[%emt 00:00:03] [%clk 00:04:02]} 25. Bf4
{[%emt 00:00:02] [%clk 00:09:54]} Qc8 {[%emt 00:00:54] [%clk 00:03:18]} 26. Rb1
{[%emt 00:00:17] [%clk 00:09:47]} g5 {[%emt 00:00:15] [%clk 00:03:13]} 27. Bb8
{[%emt 00:03:00] [%clk 00:06:57]} Qf5 {[%emt 00:00:25] [%clk 00:02:58]} 28. Rb2
{[%emt 00:01:06] [%clk 00:06:01]} Nd7 {[%emt 00:02:34] [%clk 00:00:34]} 29. Bxa7
{[%emt 00:00:11] [%clk 00:05:59]} Ra8 {[%emt 00:00:24] [%clk 00:00:21]} 30. Qa6
{[%emt 00:00:19] [%clk 00:05:50]} g4 {[%emt 00:00:04] [%clk 00:00:27]} 31. Ne1
{[%emt 00:01:13] [%clk 00:04:47]} Qf6 {[%emt 00:00:20] [%clk 00:00:17]} 32. Qb7
{[%emt 00:00:06] [%clk 00:04:50]} Rd8 {[%emt 00:00:11] [%clk 00:00:17]} 33. Qb4
{[%emt 00:00:52] [%clk 00:04:08]} Nf8 {[%emt 00:00:12] [%clk 00:00:15]} 34. Nd3
{[%emt 00:00:09] [%clk 00:04:10]} Ne6 {[%emt 00:00:07] [%clk 00:00:18]} 35. Ne5
{[%emt 00:00:01] [%clk 00:04:17]} Re8 {[%emt 00:00:12] [%clk 00:00:17]} 36. a5
{[%emt 00:00:09] [%clk 00:04:18]} Qg5 {[%emt 00:00:08] [%clk 00:00:19]} 37. Rb1
{[%emt 00:00:14] [%clk 00:04:14]} Qf5 {[%emt 00:00:12] [%clk 00:00:17]} 38. Rf1
{[%emt 00:00:05] [%clk 00:04:19]} h5 {[%emt 00:00:14] [%clk 00:00:13]} 39. Nxc6
{[%emt 00:00:04] [%clk 00:04:25]} h4 {[%emt 00:00:03] [%clk 00:00:21]} 40. gxh4
{[%emt 00:00:03] [%clk 00:04:31]} Nf4 {[%emt 00:00:06] [%clk 00:00:25]} 41. Qb2
{[%emt 00:01:05] [%clk 00:03:36]} g3 {[%emt 00:00:04] [%clk 00:00:31]} 42. Ne5
{[%emt 00:00:29] [%clk 00:03:17]} gxf2+ {[%emt 00:00:16] [%clk 00:00:26]} 43.
Rxf2 {[%clk 00:03:26]} Nxf2 {[%emt 00:00:10] [%clk 00:00:27]} 44. Qxf2 {[%emt
00:00:01] [%clk 00:03:34]} f6 {[%emt 00:00:04] [%clk 00:00:33]} 45. Qg3+ {[%emt
00:00:40] [%clk 00:03:04]} Kh7 {[%emt 00:00:04] [%clk 00:00:38]} 46. Qg4 {[%emt
00:00:09] [%clk 00:03:06]} Rxe5 {[%emt 00:00:26] [%clk 00:00:22]} 47. Qxf5+
{[%emt 00:00:02] [%clk 00:03:14]} Rxf5 {[%emt 00:00:01] [%clk 00:00:31]} 48. g4
{[%emt 00:00:20] [%clk 00:03:04]} Ne2+ {[%emt 00:00:01] [%clk 00:00:40]} 49. Kg2
{[%emt 00:00:01] [%clk 00:03:14]} Rf4 {[%emt 00:00:07] [%clk 00:00:43]} 50. c6
{[%emt 00:00:01] [%clk 00:03:23]} Nc3 {[%emt 00:00:16] [%clk 00:00:37]} 51. Kg3
{[%emt 00:00:44] [%clk 00:02:49]} Rf1 {[%emt 00:00:23] [%clk 00:00:24]} 52. c7
{[%emt 00:00:13] [%clk 00:02:46]} Rc1 {[%emt 00:00:01] [%clk 00:00:32]} 53. Bc5
{[%emt 00:00:06] [%clk 00:02:50]} Ne4+ {[%emt 00:00:06] [%clk 00:00:37]} 54. Kg2
{[%emt 00:00:13] [%clk 00:02:46]} Rc2+ {[%emt 00:00:13] [%clk 00:00:34]} 55. Kf1
{[%emt 00:00:02] [%clk 00:02:55]} Ng3+ {[%emt 00:00:09] [%clk 00:00:35]} 56. Kg1
{[%emt 00:01:03] [%clk 00:02:02]} Ne2+ {[%emt 00:00:02] [%clk 00:00:43]} 57. Kf1
{[%emt 00:00:04] [%clk 00:02:07]} Ng3+ {[%emt 00:00:05] [%clk 00:00:48]} 58. Kg1
{[%emt 00:00:01] [%clk 00:02:17]} Ne2+ {[%emt 00:00:07] [%clk 00:00:51]} 59. Kf1
{[%emt 00:00:04] [%clk 00:02:23]} Ng3+ {[%emt 00:00:01] [%clk 00:00:59]} 60. Kg1
{[%emt 00:00:44] [%clk 00:01:49]} Ne2+ {[%emt 00:00:02] [%clk 00:01:08]} 1/2-1/2

[Site "Europe Echecs"]

[Event "Championnat d'Europe Rapide"]
[Date "2024.12.08"]
[White "Fridman, Daniel"]
[Black "Tsolakidou, Stavroula"]
[WhiteElo "2571"]
[BlackElo "2451"]
[Round "8.21"]
[Result "1-0"]
[TimeControl "900+10"]

1. Nf3 {[%emt 00:25:37] [%clk 00:15:17]} Nf6 {[%emt 00:00:02] [%clk 00:15:18]}
2. c4 {[%emt 00:00:01] [%clk 00:15:26]} g6 {[%emt 00:00:03] [%clk 00:15:26]} 3.
d4 {[%emt 00:00:02] [%clk 00:15:33]} Bg7 {[%emt 00:00:02] [%clk 00:15:34]} 4. g3
{[%emt 00:00:02] [%clk 00:15:41]} O-O {[%emt 00:00:04] [%clk 00:15:41]} 5. Bg2
{[%emt 00:00:01] [%clk 00:15:49]} d6 {[%emt 00:00:11] [%clk 00:15:41]} 6. Nc3
{[%emt 00:00:02] [%clk 00:15:57]} Nbd7 {[%emt 00:00:07] [%clk 00:15:44]} 7. O-O
{[%emt 00:00:02] [%clk 00:16:05]} e5 {[%emt 00:00:03] [%clk 00:15:51]} 8. e4
{[%emt 00:00:02] [%clk 00:16:13]} exd4 {[%emt 00:00:04] [%clk 00:15:57]} 9. Nxd4
{[%emt 00:00:02] [%clk 00:16:21]} Re8 {[%emt 00:00:05] [%clk 00:16:02]} 10. Re1
{[%emt 00:00:11] [%clk 00:16:19]} Nc5 {[%emt 00:00:06] [%clk 00:16:07]} 11. h3
{[%emt 00:01:23] [%clk 00:15:06]} h6 {[%emt 00:00:05] [%clk 00:16:12]} 12. Nb3
{[%emt 00:00:47] [%clk 00:14:29]} Ne6 {[%emt 00:00:41] [%clk 00:15:41]} 13. f4
{[%emt 00:01:14] [%clk 00:13:24]} a5 {[%emt 00:01:39] [%clk 00:14:12]} 14. a4
{[%emt 00:00:20] [%clk 00:13:14]} Nd7 {[%emt 00:00:41] [%clk 00:13:42]} 15. Be3
{[%emt 00:00:02] [%clk 00:13:21]} Ndc5 {[%emt 00:02:27] [%clk 00:11:25]} 16.
Nxc5 {[%emt 00:00:37] [%clk 00:12:54]} Nxc5 {[%emt 00:01:55] [%clk 00:09:41]}
17. e5 {[%emt 00:00:25] [%clk 00:12:39]} Ra6 {[%emt 00:02:30] [%clk 00:07:21]}
18. Bxc5 {[%emt 00:02:07] [%clk 00:10:42]} dxc5 {[%emt 00:00:03] [%clk
00:07:28]} 19. Qxd8 {[%emt 00:00:04] [%clk 00:10:48]} Rxd8 {[%emt 00:00:03]
[%clk 00:07:35]} 20. Rad1 {[%emt 00:00:02] [%clk 00:10:55]} Rf8 {[%emt 00:03:34]
[%clk 00:04:12]} 21. Nd5 {[%emt 00:00:02] [%clk 00:11:03]} c6 {[%emt 00:00:12]
[%clk 00:04:10]} 22. Ne7+ {[%emt 00:00:02] [%clk 00:11:11]} Kh8 {[%emt 00:00:23]
[%clk 00:03:57]} 23. Nxc8 {[%emt 00:00:02] [%clk 00:11:19]} Rxc8 {[%emt
00:00:02] [%clk 00:04:05]} 24. Rd7 {[%emt 00:00:01] [%clk 00:11:27]} Rb6 {[%emt
00:00:21] [%clk 00:03:55]} 25. Rxf7 {[%emt 00:00:18] [%clk 00:11:19]} Rxb2
{[%emt 00:00:03] [%clk 00:04:02]} 26. Rd1 {[%emt 00:00:40] [%clk 00:10:49]} Rf8
{[%emt 00:02:55] [%clk 00:01:18]} 27. Rxf8+ {[%emt 00:00:51] [%clk 00:10:07]}
Bxf8 {[%emt 00:00:01] [%clk 00:01:26]} 28. Bf1 {[%emt 00:00:02] [%clk 00:10:15]}
Kg8 {[%emt 00:00:43] [%clk 00:00:54]} 29. Rd7 {[%emt 00:00:02] [%clk 00:10:23]}
Ra2 {[%emt 00:00:50] [%clk 00:00:14]} 30. Rxb7 {[%emt 00:01:33] [%clk 00:09:00]}
Bg7 {[%emt 00:00:07] [%clk 00:00:17]} 31. Bd3 {[%emt 00:01:33] [%clk 00:07:37]}
g5 {[%emt 00:00:06] [%clk 00:00:22]} 32. Kf1 {[%emt 00:01:53] [%clk 00:05:53]}
Rxa4 {[%emt 00:00:05] [%clk 00:00:27]} 33. e6 {[%emt 00:02:04] [%clk 00:03:59]}
Ra1+ {[%emt 00:00:17] [%clk 00:00:20]} 34. Ke2 {[%emt 00:00:02] [%clk 00:04:07]}
Bc3 {[%emt 00:00:17] [%clk 00:00:13]} 35. Bh7+ {[%emt 00:00:03] [%clk 00:04:13]}
Kh8 {[%emt 00:00:08] [%clk 00:00:15]} 36. e7 {[%emt 00:02:00] [%clk 00:02:23]}
Re1+ {[%emt 00:00:03] [%clk 00:00:23]} 37. Kf2 {[%emt 00:00:01] [%clk 00:02:32]}
a4 {[%emt 00:00:17] [%clk 00:00:17]} 38. f5 {[%emt 00:02:01] [%clk 00:00:40]} a3
{[%emt 00:00:14] [%clk 00:00:13]} 39. f6 {[%emt 00:00:01] [%clk 00:00:49]} a2
{[%emt 00:00:08] [%clk 00:00:16]} 40. f7 {[%emt 00:00:02] [%clk 00:00:56]} Rf1+
{[%emt 00:00:11] [%clk 00:00:15]} 41. Kxf1 {[%emt 00:00:02] [%clk 00:01:04]}
a1=Q+ {[%emt 00:00:03] [%clk 00:00:22]} 42. Bb1 {[%emt 00:00:02] [%clk
00:01:12]} 1-0

[Site "Europe Echecs"]

[Event "Championnat d'Europe Rapide"]
[Date "2024.12.08"]
[White "Saric, Ante"]
[Black "Hamitevici, Vladimir"]
[WhiteElo "2482"]
[BlackElo "2423"]
[Round "8.22"]
[Result "1-0"]
[TimeControl "900+10"]

1. Nf3 {[%emt 00:02:28] [%clk 00:15:19]} c5 {[%emt 00:00:12] [%clk 00:15:07]} 2.
b3 {[%emt 00:00:02] [%clk 00:15:28]} Nc6 {[%emt 00:01:06] [%clk 00:14:10]} 3.
Bb2 {[%emt 00:00:02] [%clk 00:15:36]} d5 {[%emt 00:00:31] [%clk 00:13:49]} 4. e3
{[%emt 00:00:02] [%clk 00:15:44]} f6 {[%emt 00:01:11] [%clk 00:12:47]} 5. d4
{[%emt 00:00:34] [%clk 00:15:20]} Bg4 {[%emt 00:00:32] [%clk 00:12:25]} 6. Be2
{[%emt 00:01:25] [%clk 00:14:05]} e6 {[%emt 00:02:19] [%clk 00:10:15]} 7. O-O
{[%emt 00:00:12] [%clk 00:14:04]} Bd6 {[%emt 00:01:07] [%clk 00:09:18]} 8. h3
{[%emt 00:01:23] [%clk 00:12:52]} Bh5 {[%emt 00:00:21] [%clk 00:09:05]} 9. c4
{[%emt 00:00:04] [%clk 00:12:59]} Nge7 {[%emt 00:00:07] [%clk 00:09:08]} 10.
cxd5 {[%emt 00:00:20] [%clk 00:12:50]} Nxd5 {[%emt 00:00:04] [%clk 00:09:14]}
11. Nbd2 {[%emt 00:00:18] [%clk 00:12:42]} cxd4 {[%emt 00:00:18] [%clk
00:09:06]} 12. Nxd4 {[%emt 00:00:10] [%clk 00:12:42]} Bxe2 {[%emt 00:00:02]
[%clk 00:09:14]} 13. Qxe2 {[%emt 00:00:13] [%clk 00:12:39]} Nxd4 {[%emt
00:00:12] [%clk 00:09:12]} 14. Bxd4 {[%emt 00:00:13] [%clk 00:12:36]} O-O {[%emt
00:00:21] [%clk 00:09:01]} 15. Rfd1 {[%emt 00:00:06] [%clk 00:12:40]} Qe7 {[%emt
00:00:39] [%clk 00:08:32]} 16. Nc4 {[%emt 00:00:35] [%clk 00:12:15]} Bb4 {[%emt
00:00:31] [%clk 00:08:10]} 17. Rac1 {[%emt 00:00:58] [%clk 00:11:27]} b5 {[%emt
00:00:30] [%clk 00:07:51]} 18. a3 {[%emt 00:00:39] [%clk 00:10:58]} Bxa3 {[%emt
00:02:28] [%clk 00:05:33]} 19. Nxa3 {[%emt 00:00:07] [%clk 00:11:01]} Qxa3
{[%clk 00:05:42]} 20. Bc5 {[%emt 00:00:02] [%clk 00:11:08]} Qxb3 {[%emt
00:00:02] [%clk 00:05:50]} 21. Bxf8 {[%emt 00:00:10] [%clk 00:11:08]} Rxf8
{[%emt 00:00:13] [%clk 00:05:47]} 22. Rd3 {[%emt 00:00:54] [%clk 00:10:25]} Qa4
{[%emt 00:00:15] [%clk 00:05:41]} 23. Rd4 {[%emt 00:00:35] [%clk 00:10:01]} Qa6
{[%emt 00:01:29] [%clk 00:04:21]} 24. e4 {[%emt 00:00:09] [%clk 00:10:03]} Nf4
{[%emt 00:01:15] [%clk 00:03:15]} 25. Qd2 {[%emt 00:00:02] [%clk 00:10:12]} g5
{[%emt 00:01:17] [%clk 00:02:08]} 26. Rc7 {[%emt 00:00:39] [%clk 00:09:43]} Qa1+
{[%emt 00:01:00] [%clk 00:01:17]} 27. Kh2 {[%emt 00:00:01] [%clk 00:09:52]} Qf1
{[%emt 00:00:02] [%clk 00:01:26]} 28. f3 {[%emt 00:00:20] [%clk 00:09:42]} Ne2
{[%emt 00:00:01] [%clk 00:01:34]} 29. Qd1 {[%emt 00:00:37] [%clk 00:09:15]} Qxd1
{[%emt 00:00:12] [%clk 00:01:33]} 30. Rxd1 {[%emt 00:00:01] [%clk 00:09:24]} Rf7
{[%clk 00:01:42]} 31. Rxf7 {[%emt 00:00:58] [%clk 00:08:36]} Kxf7 {[%emt
00:00:01] [%clk 00:01:51]} 32. Rd7+ {[%clk 00:08:45]} Kg6 {[%clk 00:02:01]} 33.
Rxa7 {[%emt 00:00:02] [%clk 00:08:53]} Nd4 {[%emt 00:00:49] [%clk 00:01:21]} 34.
Rb7 {[%emt 00:00:31] [%clk 00:08:32]} h5 {[%emt 00:00:20] [%clk 00:01:10]} 35.
h4 {[%emt 00:01:49] [%clk 00:06:55]} gxh4 {[%emt 00:00:17] [%clk 00:01:04]} 36.
Kh3 {[%emt 00:00:01] [%clk 00:07:04]} Kg5 {[%clk 00:01:13]} 37. Rb6 {[%emt
00:00:27] [%clk 00:06:47]} Kf4 {[%emt 00:00:25] [%clk 00:00:58]} 38. Kxh4 {[%emt
00:00:10] [%clk 00:06:47]} f5 {[%emt 00:00:47] [%clk 00:00:20]} 39. exf5 {[%emt
00:00:44] [%clk 00:06:14]} exf5 {[%emt 00:00:01] [%clk 00:00:29]} 40. Kxh5
{[%emt 00:00:56] [%clk 00:05:27]} Kg3 {[%emt 00:00:01] [%clk 00:00:38]} 41. Rg6+
{[%emt 00:00:42] [%clk 00:04:55]} Kf4 {[%emt 00:00:25] [%clk 00:00:23]} 42. Rd6
{[%emt 00:00:28] [%clk 00:04:38]} Ke5 {[%emt 00:00:17] [%clk 00:00:16]} 43. Rb6
{[%emt 00:00:39] [%clk 00:04:09]} Kd5 {[%emt 00:00:07] [%clk 00:00:19]} 44. g4
{[%emt 00:00:14] [%clk 00:04:05]} fxg4 {[%clk 00:00:27]} 45. fxg4 {[%emt
00:00:03] [%clk 00:04:13]} Kc5 {[%clk 00:00:37]} 46. Rf6 {[%emt 00:00:09] [%clk
00:04:14]} b4 {[%emt 00:00:18] [%clk 00:00:30]} 47. g5 {[%clk 00:04:22]} b3
{[%emt 00:00:22] [%clk 00:00:19]} 48. g6 {[%emt 00:00:37] [%clk 00:03:55]} Nc6
{[%emt 00:00:12] [%clk 00:00:16]} 49. g7 {[%emt 00:00:35] [%clk 00:03:30]} Ne7
{[%clk 00:00:25]} 50. Rf7 {[%emt 00:01:02] [%clk 00:02:38]} b2 {[%emt 00:00:08]
[%clk 00:00:27]} 51. Rxe7 {[%emt 00:00:20] [%clk 00:02:28]} b1=Q {[%emt
00:00:02] [%clk 00:00:34]} 52. g8=Q {[%emt 00:00:02] [%clk 00:02:36]} Qh1 {[%emt
00:00:01] [%clk 00:00:43]} 53. Kg6 {[%emt 00:00:05] [%clk 00:02:41]} Qg2+ {[%emt
00:00:07] [%clk 00:00:46]} 54. Kf7 {[%emt 00:00:04] [%clk 00:02:46]} Qf3+ {[%emt
00:00:07] [%clk 00:00:50]} 55. Kg7 {[%emt 00:00:10] [%clk 00:02:46]} Qg3+ {[%emt
00:00:37] [%clk 00:00:24]} 56. Kf8 {[%emt 00:00:07] [%clk 00:02:49]} Qb8+ {[%emt
00:00:12] [%clk 00:00:21]} 57. Re8 {[%emt 00:01:51] [%clk 00:01:08]} Qd6+ {[%emt
00:00:03] [%clk 00:00:29]} 58. Re7 {[%emt 00:00:27] [%clk 00:00:51]} Qb8+ {[%clk
00:00:38]} 59. Kg7 {[%emt 00:00:10] [%clk 00:00:51]} Qg3+ {[%emt 00:00:17] [%clk
00:00:31]} 60. Kh8 {[%emt 00:00:06] [%clk 00:00:54]} Qh4+ {[%emt 00:00:13] [%clk
00:00:29]} 61. Qh7 {[%emt 00:00:02] [%clk 00:01:02]} Kd5 {[%emt 00:00:32] [%clk
00:15:10]} 1-0

[Site "Europe Echecs"]

[Event "Championnat d'Europe Rapide"]
[Date "2024.12.08"]
[White "Narva, Mai"]
[Black "Gavrilescu, David"]
[WhiteElo "2413"]
[BlackElo "2549"]
[Round "8.23"]
[Result "0-1"]
[TimeControl "900+10"]

1. e4 {[%emt 00:00:02] [%clk 00:15:18]} c5 {[%emt 00:00:13] [%clk 00:15:09]} 2.
Nf3 {[%emt 00:00:02] [%clk 00:15:25]} a6 {[%emt 00:00:16] [%clk 00:15:04]} 3. g3
{[%emt 00:00:11] [%clk 00:15:23]} Nc6 {[%emt 00:00:03] [%clk 00:15:11]} 4. Bg2
{[%emt 00:00:12] [%clk 00:15:21]} Nf6 {[%emt 00:00:02] [%clk 00:15:18]} 5. e5
{[%emt 00:00:25] [%clk 00:15:06]} Ng4 {[%emt 00:00:13] [%clk 00:15:15]} 6. c3
{[%emt 00:02:19] [%clk 00:12:57]} d6 {[%emt 00:02:17] [%clk 00:13:09]} 7. exd6
{[%emt 00:00:50] [%clk 00:12:17]} e5 {[%emt 00:00:21] [%clk 00:12:57]} 8. d4
{[%emt 00:01:34] [%clk 00:10:53]} cxd4 {[%emt 00:02:47] [%clk 00:10:20]} 9. cxd4
{[%emt 00:00:08] [%clk 00:10:55]} e4 {[%emt 00:02:28] [%clk 00:08:02]} 10. Ne5
{[%emt 00:07:11] [%clk 00:03:54]} Ncxe5 {[%emt 00:00:47] [%clk 00:07:25]} 11.
dxe5 {[%emt 00:00:04] [%clk 00:04:01]} Nxe5 {[%emt 00:00:07] [%clk 00:07:28]}
12. O-O {[%emt 00:01:10] [%clk 00:03:00]} Bxd6 {[%emt 00:00:11] [%clk 00:07:28]}
13. Nc3 {[%emt 00:00:59] [%clk 00:02:11]} f5 {[%emt 00:02:05] [%clk 00:05:32]}
14. Qb3 {[%emt 00:01:33] [%clk 00:00:48]} Qe7 {[%emt 00:01:07] [%clk 00:04:36]}
15. Rd1 {[%emt 00:00:27] [%clk 00:00:31]} Be6 {[%emt 00:00:33] [%clk 00:04:11]}
16. Nd5 {[%emt 00:00:18] [%clk 00:00:25]} Qf7 {[%emt 00:00:01] [%clk 00:04:20]}
17. Qb6 {[%emt 00:00:18] [%clk 00:00:16]} Nc4 {[%emt 00:01:46] [%clk 00:02:44]}
18. Qd4 {[%emt 00:00:03] [%clk 00:00:23]} Rc8 {[%emt 00:01:01] [%clk 00:01:53]}
19. Bf4 {[%emt 00:00:18] [%clk 00:00:15]} Bc5 {[%emt 00:00:41] [%clk 00:01:23]}
20. Qc3 {[%emt 00:00:11] [%clk 00:00:14]} Bxd5 {[%emt 00:00:01] [%clk 00:01:31]}
21. b3 {[%emt 00:00:07] [%clk 00:00:17]} Nb6 {[%emt 00:00:04] [%clk 00:01:37]}
22. Qe5+ {[%emt 00:00:09] [%clk 00:00:18]} Be6 {[%emt 00:00:34] [%clk 00:01:14]}
23. Rac1 {[%emt 00:00:15] [%clk 00:00:13]} Be7 {[%emt 00:00:11] [%clk 00:01:13]}
24. Rc7 {[%emt 00:00:10] [%clk 00:00:13]} Qf6 {[%emt 00:00:55] [%clk 00:00:28]}
25. Rxc8+ {[%emt 00:00:10] [%clk 00:00:12]} Nxc8 {[%emt 00:00:02] [%clk
00:00:36]} 26. Qc7 {[%emt 00:00:07] [%clk 00:00:16]} O-O {[%emt 00:00:06] [%clk
00:00:40]} 27. Qxb7 {[%emt 00:00:04] [%clk 00:00:22]} Bf7 {[%emt 00:00:10] [%clk
00:00:40]} 28. Bf1 {[%emt 00:00:04] [%clk 00:00:27]} a5 {[%emt 00:00:07] [%clk
00:00:44]} 29. Qb5 {[%emt 00:00:06] [%clk 00:00:30]} Bb4 {[%emt 00:00:20] [%clk
00:00:35]} 30. Bc7 {[%emt 00:00:27] [%clk 00:00:13]} Qe7 {[%emt 00:00:26] [%clk
00:00:18]} 31. Bxa5 {[%emt 00:00:10] [%clk 00:00:13]} Bxa5 {[%emt 00:00:02]
[%clk 00:00:27]} 32. Qxa5 {[%clk 00:00:22]} e3 {[%emt 00:00:01] [%clk 00:00:36]}
33. Qe1 {[%emt 00:00:16] [%clk 00:00:16]} Bh5 {[%emt 00:00:18] [%clk 00:00:29]}
34. Bc4+ {[%emt 00:00:02] [%clk 00:00:24]} Kh8 {[%emt 00:00:01] [%clk 00:00:38]}
35. Rd3 {[%emt 00:00:08] [%clk 00:00:26]} exf2+ {[%emt 00:00:23] [%clk
00:00:25]} 36. Qxf2 {[%emt 00:00:12] [%clk 00:00:23]} Nd6 {[%emt 00:00:06] [%clk
00:00:29]} 37. Bd5 {[%emt 00:00:17] [%clk 00:00:16]} Ne4 {[%emt 00:00:07] [%clk
00:00:32]} 38. Qd4 {[%emt 00:00:07] [%clk 00:00:19]} Qg5 {[%emt 00:00:14] [%clk
00:00:29]} 39. Qe3 {[%emt 00:00:12] [%clk 00:00:16]} Qf6 {[%emt 00:00:23] [%clk
00:00:16]} 40. Rd4 {[%emt 00:00:11] [%clk 00:00:16]} h6 {[%emt 00:00:06] [%clk
00:00:20]} 41. a4 {[%emt 00:00:07] [%clk 00:00:19]} Rd8 {[%emt 00:00:03] [%clk
00:00:27]} 42. a5 {[%emt 00:00:16] [%clk 00:00:13]} Bf7 {[%emt 00:00:15] [%clk
00:00:22]} 43. Qd3 {[%emt 00:00:04] [%clk 00:00:19]} Bxd5 {[%emt 00:00:07] [%clk
00:00:25]} 44. Rxd5 {[%emt 00:00:02] [%clk 00:00:27]} Qa1+ {[%emt 00:00:02]
[%clk 00:00:33]} 45. Kg2 {[%emt 00:00:02] [%clk 00:00:34]} Qb2+ {[%emt 00:00:12]
[%clk 00:00:31]} 46. Kg1 {[%emt 00:00:09] [%clk 00:00:36]} Qf2+ {[%emt 00:00:04]
[%clk 00:00:36]} 47. Kh1 {[%emt 00:00:02] [%clk 00:00:44]} Rxd5 {[%emt 00:00:02]
[%clk 00:00:45]} 0-1

[Site "Europe Echecs"]